Cogmind - Beta 16 @@@ ROGUE MODE // 2025.10.26 @ 16:15:56 Player: Cyborg Snake Result: Destroyed by as-43969 with Assembled Heavy Rifle Performance ------------- Evolutions (0) 0 Regions Visited (2) 400 Robots Destroyed (9) 45 Value Destroyed (179) 179 Prototype IDs (0) 0 Alien Tech Used (0) 0 Bonus (-42) -42 TOTAL SCORE: 582 Bonus ------- Friendly Fire -42 Cogmind --------- Core Integrity 0/250 Matter 262/300 Energy 100/100 System Corruption 3% Temperature Cool (0) Movement Treading (400) Ox3 Location -10/Mines Parts ------- > --- POWER (1) -------- (None) > --- PROPULSION (2) --- Light Treads > --- UTILITY (2) ------ Huge Storage Unit > --- WEAPON (2) ------- (None) > --- INVENTORY (25) --- Light Treads Aluminum Leg Aluminum Leg Heat Sink Utility Shielding Beam Rifle Particle Gun Beam Cannon Datajack Peak State ------------ > --- POWER ------------ Light Nuclear Core > --- PROPULSION ------- Light Treads Light Treads > --- UTILITY ---------- Huge Storage Unit Terrain Scanner > --- WEAPON ----------- Heavy Assault Rifle Datajack > --- INVENTORY -------- Aluminum Leg Aluminum Leg Heat Sink Utility Shielding Beam Rifle Particle Gun Beam Cannon Light Assault Rifle Light Assault Rifle Grenade Launcher [Rating: 11] Favorites ----------- Power Light Nuclear Core Engine Light Ion Engine Power Core Light Nuclear Core Propulsion Light Treads Treads Light Treads Wheel Wheel Utility Huge Storage Unit Device Terrain Scanner Storage Huge Storage Unit Weapon Light Assault Rifle Ballistic Gun Light Assault Rifle Launcher Grenade Launcher Special Melee Weapon Datajack Build | -11 -10 -10 ------- Run | Yrd Mat Min Slots Evolved . | . . . Power . | . . . Propulsion . | . . . Utility . | . . . Weapon . | . . . Parts Attached 16 | 8 . 8 Power 2 | 1 . 1 Engine 1 | 1 . . Core 1 | . . 1 Reactor . | . . . Propulsion 5 | 4 . 1 Treads 3 | 2 . 1 Leg . | . . . Wheel 2 | 2 . . Hover . | . . . Flight . | . . . Utility 4 | 1 . 3 Device 1 | . . 1 Storage 3 | 1 . 2 Processor . | . . . Hackware . | . . . Protection . | . . . Artifact . | . . . Weapon 5 | 2 . 3 Energy Gun . | . . . Energy Cannon . | . . . Ballistic Gun 3 | 2 . 1 Ballistic Cannon . | . . . Launcher 1 | . . 1 Special Weapon . | . . . Impact Weapon . | . . . Slashing Weapon . | . . . Piercing Weapon . | . . . Special Melee Weapon 1 | . . 1 Unidentified Prototypes . | . . . Parts Lost 6 | . . 6 Power 1 | . . 1 Propulsion 2 | . . 2 Utility 2 | . . 2 Weapon 1 | . . 1 Highest Loss Streak 4 | . . 4 To Critical Strikes . | . . . Average Backups 5 | 1 2 6 Power . | . . . Propulsion 2 | 1 2 2 Utility . | . . . Weapon 2 | . . 2 Tool/Special . | . . . Unused Backups 11 | 3 . 8 Power . | . . . Propulsion 4 | 2 . 2 Utility 3 | . . 3 Weapon 4 | 1 . 3 Tool/Special . | . . . Average Slot Usage (%) 95 | . 85 96 Engine 5 | . 14 5 Core 8 | . . 8 Treads 16 | . . 17 Wheel 11 | . 28 9 Device 8 | . . 8 Storage 16 | . 14 16 Ballistic Gun 16 | . 28 15 Special Melee Weapon 11 | . . 11 Peak Build Rating 11 | 6 6 11 Average Rating 8 | 3 6 8 On Entrance 4 | . 6 6 Avg Prop Armor Cover (%) . | . . . Naked Turns . | . . . Heaviest Build 90 | 10 10 90 Greatest Support 40 | 40 20 40 Greatest Overweight (x) 8 | 1 . 8 Average Overweight (x) 1 | . . 2 Largest Inventory Capacity 25 | 8 8 25 Average Capacity 21 | 6 8 24 Most Carried 10 | 5 3 10 Average Carried 5 | 1 2 6 Final Capacity 25 | 8 8 25 Final Carried 9 | 2 3 9 Class Distribution -------------------- 100% | Mutant Dominant Class ---------------- Mutant | -10/Materials Mutant | -10/Mines Resources | -11 -10 -10 ----------- Run | Yrd Mat Min Matter Collected 433 | 175 . 258 Remotely . | . . . Salvage Created 232 | . . 232 Parts 19 | . . 19 Haulers Intercepted . | . . . Recyclers Shooed . | . . . Parts Field Recycled . | . . . Retrieved Matter . | . . . Parts Self-Destructed . | . . . Prevented . | . . . Parts Restored . | . . . Kills | -11 -10 -10 ------- Run | Yrd Mat Min Combat Hostiles Destroyed 12 | . . 12 Guns 6 | . . 6 AOE 6 | . . 6 Classes Destroyed 4 | . . 4 Worker 1 | . . 1 Swarmer 5 | . . 5 Grunt 3 | . . 3 Assembled 4 | . . 4 Best Kill Streak 5 | . . 5 Combat Bots Only 5 | . . 5 Max Kills in Single Turn 3 | . . 3 Gunslinging . | . . . Exploded 2 | . . 2 Melee . | . . . Uniques/NPCs Destroyed . | . . . Combat | -11 -10 -10 -------- Run | Yrd Mat Min Hostile Shots Fired 59 | . 1 58 Missed 20 | . . 20 Hits 39 | . 1 38 Melee 4 | . . 4 Projectile 35 | . 1 34 AOE 3 | . . 3 Critical Strikes 2 | . . 2 Damage Taken 797 | . 11 786 Core 250 | . 11 239 Absorbed by Shields . | . . . Core Remaining (%) 100 | 100 . . Volleys Fired 26 | . . 26 Largest 2 | . . 2 Hottest 53 | . . 53 Shots Fired 31 | . . 31 Gun 26 | . . 26 Cannon . | . . . Launcher 5 | . . 5 Special . | . . . Kinetic 26 | . . 26 Thermal . | . . . Explosive 5 | . . 5 Electromagnetic . | . . . Robot Hit Streak 6 | . . 6 Robot Miss Streak 3 | . . 3 Penetration Max . | . . . Secondary Targets . | . . . Shots Hit Robots 20 | . . 20 Core Hits 25 | . . 25 Critical Kills . | . . . Critical Parts Destroyed . | . . . Critical Strikes . | . . . Melee Attacks 5 | . . 5 Impact . | . . . Slashing . | . . . Piercing . | . . . Sneak Attacks 5 | . . 5 Combat Hostiles . | . . . Follow-up Attacks . | . . . Damage Inflicted 649 | . . 649 Guns 145 | . . 145 Cannons . | . . . Explosions 504 | . . 504 Melee . | . . . Ramming . | . . . Kinetic 145 | . . 145 Thermal . | . . . Explosive 504 | . . 504 Electromagnetic . | . . . Impact . | . . . Slashing . | . . . Piercing . | . . . Highest Corruption 3 | . . 3 Average Corruption 3 | . . 3 Corruption Purged . | . . . Corruption Blocked . | . . . Overload Shots . | . . . Overflow Damage 5 | . . 5 Projectiles . | . . . Explosions 5 | . . 5 Melee . | . . . Knockbacks . | . . . Impact . | . . . Kinetic . | . . . Secondary . | . . . Self-Inflicted Damage 106 | . . 106 Shots 3 | . . 3 Rammed . | . . . Targets Rammed . | . . . Kicked . | . . . Crushed . | . . . Highest Temperature 18 | . . 18 Average Temperature 6 | . . 6 Received Heat Transfer 156 | . 6 150 Siege Activations . | . . . Martial Activations . | . . . Shielding Activations . | . . . Robots Disrupted . | . . . Combat Hostiles . | . . . Robots Corrupted . | . . . Combat Hostiles . | . . . Parts Fried . | . . . Impact Corruptions . | . . . Robots Melted . | . . . Combat Hostiles . | . . . Parts Melted . | . . . Heat Transferred . | . . . Parts Sabotaged . | . . . Parts Stolen . | . . . Parts Stripped . | . . . Power Chain Reactions . | . . . Alert | -11 -10 -10 ------- Run | Yrd Mat Min Maximum Alert Level . | . . . Low Security (%) 100 | 100 100 100 Level 1 . | . . . Level 2 . | . . . Level 3 . | . . . Level 4 . | . . . Level 5 . | . . . High Security . | . . . Max Security . | . . . Peak Influence 142 | . 15 142 Initial 1 | . . 1 Average 50 | . 3 59 Influence Increases 309 | . 15 294 Destroy 0b10 Robot/C 160 | . . 160 Destroy 0b10 Robot/NC 5 | . . 5 Destroy Leader 40 | . . 40 Destroy Structure 29 | . . 29 Partial Spotted 15 | . 15 . Lose Combat Pursuer 60 | . . 60 Influence Decreases 263 | . 10 253 Entered New Map 4 | . . 4 Time Decay 219 | . 10 209 Lost Part 40 | . . 40 Squads Dispatched . | . . . Investigation . | . . . Extermination . | . . . Reinforcement . | . . . Assault . | . . . Garrison . | . . . Intercept . | . . . Searches Triggered . | . . . Construction Impeded . | . . . Haulers Reinforced . | . . . Active Scanning Responses . | . . . Cargo Convoy Interrupts . | . . . Stealth | -11 -10 -10 --------- Run | Yrd Mat Min Distress Signals . | . . . Communications Jammed . | . . . Distress Signals . | . . . Times Spotted 31 | . 2 29 Peak Tracking Total 19 | . 2 19 Tactical Retreats 2 | . . 2 Traps | -11 -10 -10 ------- Run | Yrd Mat Min Traps Triggered . | . . . Indirectly . | . . . Trap Hack Attempts . | . . . Triggered . | . . . Disarmed . | . . . Reprogrammed . | . . . Reused . | . . . Traps Extracted . | . . . Installed . | . . . Triggered . | . . . Machines | -11 -10 -10 ---------- Run | Yrd Mat Min Machines Disabled . | . . . Max in Single Turn . | . . . Machines Repaired . | . . . Machines Dismantled . | . . . Machines Sabotaged . | . . . Overloaded Fab Kills . | . . . Hacking | -11 -10 -10 --------- Run | Yrd Mat Min Machines Accessed . | . . . Terminals . | . . . Fabricators . | . . . Repair Stations . | . . . Recycling Units . | . . . Scanalyzers . | . . . Garrison Access . | . . . Total Hacks . | . . . Successful . | . . . Failed . | . . . Catastrophic . | . . . Database Lockouts . | . . . Manual . | . . . Terminals . | . . . Fabricators . | . . . Repair Stations . | . . . Recycling Units . | . . . Scanalyzers . | . . . Garrison Access . | . . . Terminal Hacks . | . . . Fabricator Hacks . | . . . Repair Station Hacks . | . . . Recycling Unit Hacks . | . . . Scanalyzer . | . . . Garrison Access Hacks . | . . . Unauthorized Hacks . | . . . Terminals . | . . . Fabricators . | . . . Repair Stations . | . . . Recycling Units . | . . . Scanalyzers . | . . . Garrison Access . | . . . Data Cores Recovered . | . . . Used . | . . . Hacking Detections . | . . . Full Trace Events . | . . . Feedback Events . | . . . Feedback Blocked . | . . . Robot Schematics Acquired . | . . . Robots Built . | . . . Authchips . | . . . Time . | . . . Total Robot Build Rating . | . . . Part Schematics Acquired . | . . . Parts Built . | . . . Authchips . | . . . Time . | . . . Total Part Build Rating . | . . . Part Studies Acquired . | . . . Parts Repaired . | . . . Time . | . . . Parts Recycled . | . . . Recycled Matter . | . . . Retrieved Matter . | . . . Retrieved Components . | . . . Parts Scanalyzed . | . . . Part Schematics Acquired . | . . . Parts Damaged . | . . . Bothacking | -11 -10 -10 ------------ Run | Yrd Mat Min Used RIF Installer . | . . . Robots Hacked 1 | . . 1 Non-combat 1 | . . 1 Combat . | . . . Robot Hacks Applied 1 | . . 1 parse_system 1 | . . 1 Relay Couplers Released . | . . . Fabnet Peak Effective % . | . . . Robots Rewired . | . . . Allies Hacked . | . . . Hacks Repelled . | . . . Allies | -11 -10 -10 -------- Run | Yrd Mat Min Total Allies . | . . . Largest Group . | . . . Highest-Rated Group . | . . . Highest-Rated Ally . | . . . Total Orders . | . . . Ally Attacks . | . . . Total Damage . | . . . Kills . | . . . Allies Corrupted . | . . . Allies Melted . | . . . Intel | -11 -10 -10 ------- Run | Yrd Mat Min Active Infowar (turns) 440 | . . 440 Terrain 440 | . . 440 Robot Analysis Total . | . . . Derelict Logs Recovered . | . . . Drone Launches . | . . . Drone Recoveries . | . . . Exploration | -11 -10 -10 ------------- Run | Yrd Mat Min Turns Passed 835 | 84 42 709 Spaces Moved 398 | 53 51 294 Core 19 | 19 . . Treads 138 | 15 . 123 Legs . | . . . Wheels 241 | 19 51 171 Hover . | . . . Flight . | . . . Fastest Speed 50 | 50 80 80 Average Speed 176 | 94 80 207 Slowest Speed 480 | 160 80 480 Overloaded Moves . | . . . Propulsion Burnouts . | . . . Robots Hopped . | . . . Potential Cave-ins . | . . . Cave-ins Triggered . | . . . Exploration Rate (%) 28 | 6 18 60 Regions Visited 2 Branch Regions 1 Pre-discovered Areas . | . . . Known Exits Taken . | . . . Unknown Exits Taken 2 | 1 1 . Scrap Searched 1 | . . 1 Spaces Dug . | . . . Terrain Destroyed 29 | . . 29 Melee . | . . . Projectile . | . . . AOE 29 | . . 29 Terrain Rammed . | . . . Walls Destroyed . | . . . Machines Disabled . | . . . Actions | -11 -10 -10 --------- Run | Yrd Mat Min Total 498 | 86 51 361 Wait 13 | 13 . . Move 396 | 52 50 294 Hop . | . . . Pick Up 26 | 10 1 15 Fast Attach 1 | 1 . . Attach 10 | 5 . 5 Detach 1 | . . 1 Swap 11 | 2 . 9 Drop 9 | 3 . 6 Fire 26 | . . 26 Melee 5 | . . 5 Ram . | . . . Kick . | . . . Crush . | . . . Escape Stasis . | . . . Rewire . | . . . Trap . | . . . Miscellaneous . | . . . Route ------- -11/Scrapyard -10/Materials -10/Mines History --------- Turn | Location | Event 23 | -11/Scrapyard | Discovered new exit (range 15) 85 | -11/Scrapyard | Entered Materials 115 | -10/Materials | Discovered new exit (range 13) 127 | -10/Materials | Entered Mines 311 | -10/Mines | Build established: Mutant 584 | -10/Mines | Joined a pair of Derelicts in attacking an 0b10 outpost 806 | -10/Mines | Assembled infested the area 811 | -10/Mines | Assisted by a Guerilla fighting off Assembled 814 | -10/Mines | Core integrity fell below 50% 833 | -10/Mines | Core integrity fell below 20% 836 | -10/Mines | Destroyed by as-43969 with Assembled Heavy Rifle Last Messages --------------- 00819_ as-16831 destroyed. 00820_ Lgt. Nuclear Core destroyed. 00820_ System corrupted by crushing effect (+3). 00821_ Terrain Scanner destroyed. 00822_ as-46056 destroyed. 00822_ as-23779 destroyed. 00822_ Grenade Launcher destroyed. 00822_ as-83588 suffers critical hit (Destroy). 00822_ as-83588 knocked back. 00823_ as-83902 destroyed. 00824_ HV Slug penetrates Wall. 00825_ as-42725 destroyed. 00826_ as-83588 destroyed. 00826_ A5-022(h) destroyed. 00828_ as-79910 destroyed. 00829_ D-53 Grenadier destroyed. 00830_ as-67537 destroyed. 00831_ Lgt. Treads destroyed. 00832_ Hvy. Assault Rifle severed. 00834_ The unstable cave ceiling collapses. Map ----- +----------------------------------------------------+ | ??????????????????????????????????????????# ##??? | | ??????????????????????????????? ?? ????#??# #??? | | ????????????????????????????????????????### #??? | | ?????????????????????????????????????#?### #??? | | ?????????????????????????????????????##### ##?? | | ?????????????????????????????? ?????##[[## ### | | ????????????????????????????????????#" | # | | ????????????????????????????????????#% *+ | | ????????????????????????? ?#????????#=%!=+! # | | ???????????????????###??????????#???#"!|[#%*# # | | ?????????????## ???# "????????????#?##[]##!= # | | ??????????? ??# ????????????##?#### | | ??????????? ###]=#??#??#??????????# | | ???????????% % ;#%%?????#?? ???#???##[% % ### | | ????????????# % !!???????????????### =%[ ##?## | | ?????????????# a ##????????###??#?# * ##???# | | ??????????????# ##??????? #??#?# #???#? | | ?????????????## % ##??????# ###??## ###???? | | ??????????###### #??????# #?##??## #??#### | | ??????????? ##?????# #?????## #???# | | ?????????????? a ####??# #??????# #???# # | | ?????????????##??# # %a # #### #??#?#?# #??## # | | ??????? #;%!# ## ######## #### | | ??????? [%* k | | ??????? # === a r k | | ??????????? #### @ ########### | | ?????????? #?#### u#???#????##% | | ?????????? #???### #?#???#### | | ?????????? ####### ##??????## | | ?????????? ### ###??##?### | | ???????????? ##### ##?#?????## | | ?????????????? ##### #????????## | | ?????????????## """ ##??#?????# | | ??????????????# """ ###????#?## | | ??????????????# """ #### ###??#??## | | ??????????????# ##??## ##??????## | | ??????????????## ######????# #???#????# | | ???????????????#????????????# #??#?????# | | ??????????????????????#?????# ##????????# ### | | ????????????????????????????# #????????## #?# | | ????????????????????????????# ########### ### | | ????????????????????????????# ## *[## | | ????????????????????????????## ### ########%%## | | ?????????????????????????????## ##?# #???#??# *= * | | ??????????????????????????????# #??# #??????# % | | ??????????????????????????????# #### #??????### ## | | ??????????????????????????????# ##???????# #? | | ??????????????????????????????########????????# #? | | ????????????????????????????????????????####### #? | | ?????????????????????????????????????????# #? | +----------------------------------------------------+ Best States ------------- Heat Dissipation 25 Energy Generation 14 Energy Capacity 160 Matter Stores 358 Matter Capacity 450 Sight Range 16 Terrain Scan Range 14 Terrain Scan Density 10 Evasion (%) 50 Recoil Reduction 2 Item Schematics ----------------- None Robot Schematics ------------------ None Fabricated ------------ Nothing Repaired ---------- Nothing Studied --------- None Alien Tech Used ----------------- None Achievements -------------- None Challenges ------------ None Game ------ Seed BlastQuantumPower Manual? 0 Play Time 00:13:50 Cumulative 2.4 hours Start 2025.10.26 @ 16:01:47 End 2025.10.26 @ 16:15:56 Sessions 1 Manual Loads 0 Difficulty Rogue Special Mode None Game No. 14 Rogue 14 Adventurer 0 Explorer 0 Win Type - Total 0 Types 0/0/0/0/0/0/0/0/0/0 Lore% 0 Gallery% 5 Achievement% 4 Wizard Run 0 Options --------- Layout 1 ASCII 0 Keyboard 0 Movement Mouse Keybinds 0 Fullscreen 1 Font 24/Smallcaps Map View 50x35 Zoom Use 0% Tactical HUD 1 Map Filters NONE Filters NONE Steam 1 RUN: f7d91569-0327-408d-8142-eedc6b4b3edd